Cogmind - Beta 13 @@@ ROGUE MODE // 2024.05.19 @ 05:13:51 Player: mrwizrd Result: Destroyed by G-47 Trooper with Particle Gun Performance ------------- Evolutions (2) 1000 Regions Visited (4) 800 Robots Destroyed (25) 125 Value Destroyed (847) 847 Prototype IDs (0) 0 Alien Tech Used (0) 0 Bonus (258) 258 TOTAL SCORE: 3030 Bonus ------- Follower Combat Kills 272 Friendly Fire -14 Cogmind --------- Core Integrity 0/550 Matter 197/300 Energy 100/100 System Corruption 6% Temperature Cool (9) Movement Hovering (60) Location -8/Materials Parts ------- > --- POWER (1) -------- (None) > --- PROPULSION (2) --- Hover Unit > --- UTILITY (6) ------ Visual Processing Unit Signal Interpreter > --- WEAPON (2) ------- (None) > --- INVENTORY (5) ---- Medium Storage Unit Seismic Detector Peak State ------------ > --- POWER ------------ Deuterium Engine > --- PROPULSION ------- Aluminum Leg Aluminum Leg > --- UTILITY ---------- Large Storage Unit Visual Processing Unit Sensor Array Signal Interpreter Core Shielding Drone Bay > --- WEAPON ----------- Beam Rifle Improved Datajack > --- INVENTORY -------- Aluminum Leg Aluminum Leg Hover Unit Heat Sink Medium Storage Unit Medium Matter Pod Signal Interpreter Terrain Scan Processor Seismic Detector Core Shielding Power Shielding Field Recycling Unit Heavy Assault Rifle Heavy Assault Rifle Autogun [Rating: 23] Favorites ----------- Power Light Ion Engine Engine Light Ion Engine Power Core Light Nuclear Core Propulsion Aluminum Leg Treads Light Treads Leg Aluminum Leg Hover Unit Hover Unit Utility Large Storage Unit Device Drone Bay Storage Large Storage Unit Processor Signal Interpreter Protection Power Shielding Weapon Beam Rifle Energy Gun Beam Rifle Ballistic Gun Assault Rifle Launcher EMP Blaster Special Weapon Mining Laser Special Melee Weapon Improved Datajack Build | -11 -10 -9 -9 -8 ------- Run | Yrd Mat Mat Sto Mat Slots Evolved 4 | . . 2 . 2 Power . | . . . . . Propulsion . | . . . . . Utility 4 | . . 2 . 2 Weapon . | . . . . . Parts Attached 70 | 5 25 12 11 17 Power 13 | 1 7 3 1 1 Engine 12 | 1 6 3 1 1 Core 1 | . 1 . . . Reactor . | . . . . . Propulsion 21 | 2 9 4 3 3 Treads 2 | 2 . . . . Leg 18 | . 9 4 3 2 Wheel . | . . . . . Hover 1 | . . . . 1 Flight . | . . . . . Utility 19 | 1 4 4 3 7 Device 8 | . 2 2 2 2 Storage 3 | 1 2 . . . Processor 4 | . . 1 1 2 Hackware . | . . . . . Protection 4 | . . 1 . 3 Artifact . | . . . . . Weapon 17 | 1 5 1 4 6 Energy Gun 6 | 1 3 . 2 . Energy Cannon . | . . . . . Ballistic Gun 8 | . 2 . 1 5 Ballistic Cannon . | . . . . . Launcher 1 | . . 1 . . Special Weapon 1 | . . . 1 . Impact Weapon . | . . . . . Slashing Weapon . | . . . . . Piercing Weapon . | . . . . . Special Melee Weapon 1 | . . . . 1 Unidentified Prototypes . | . . . . . Parts Lost 34 | . 5 8 2 19 Power 6 | . 3 2 . 1 Propulsion 9 | . 1 4 . 4 Utility 10 | . . 2 . 8 Weapon 9 | . 1 . 2 6 Highest Loss Streak 19 | . 2 3 2 19 To Critical Strikes . | . . . . . Average Slot Usage (%) 91 | . 93 68 95 91 Engine 10 | . 12 9 10 8 Treads 1 | . 4 . . . Leg 21 | . 23 18 22 15 Device 10 | . 11 16 8 13 Storage 11 | . 14 11 11 8 Processor 9 | . . 11 11 18 Protection 6 | . . . 11 8 Energy Gun 11 | . 10 . 15 6 Ballistic Gun 4 | . 14 . . 3 Launcher 1 | . . 2 2 . Naked Turns . | . . . . . Heaviest Build 41 | 12 39 29 36 41 Greatest Support 40 | 40 40 20 20 20 Greatest Overweight (x) 10 | 2 1 8 1 10 Average Overweight (x) 1 | . . 1 1 1 Largest Inventory Capacity 15 | 8 15 15 15 15 Average Capacity 14 | 7 14 15 15 14 Most Carried 15 | 7 15 13 15 15 Average Carried 12 | 4 12 11 12 13 Final Capacity 15 | 8 15 15 15 5 Final Carried 15 | 7 13 8 15 2 Class Distribution -------------------- 37% | Commander-Mutant 33% | Mutant 20% | Scavenger-Mutant 7% | Commander-Assassin Dominant Class ---------------- Mutant | -10/Materials Scavenger-Mutant | -9/Materials Commander-Mutant | -9/Storage Commander-Assassin | -8/Materials Resources | -11 -10 -9 -9 -8 ----------- Run | Yrd Mat Mat Sto Mat Matter Collected 999 | 212 424 36 245 82 Remotely . | . . . . . Salvage Created 987 | . 558 94 174 161 Parts 57 | . 42 3 4 8 Haulers Intercepted . | . . . . . Recyclers Shooed . | . . . . . Parts Field Recycled . | . . . . . Retrieved Matter . | . . . . . Parts Self-Destructed . | . . . . . Prevented . | . . . . . Kills | -11 -10 -9 -9 -8 ------- Run | Yrd Mat Mat Sto Mat Combat Hostiles Destroyed 19 | . 11 2 3 3 Guns 16 | . 11 . 2 3 Cannons 1 | . . . 1 . AOE 2 | . . 2 . . Classes Destroyed 5 | . 3 1 . 1 Worker 2 | . 1 . 1 . Watcher 4 | . 3 . 1 . Grunt 12 | . 11 1 . . Sentry 6 | . . 1 3 2 Specialist 1 | . . . . 1 Best Kill Streak 3 | . 3 1 2 2 Combat Bots Only 3 | . 3 1 1 2 Max Kills in Single Turn 1 | . 1 1 1 1 Gunslinging . | . . . . . Exploded 1 | . . 1 . . Melee . | . . . . . Uniques/NPCs Destroyed . | . . . . . Combat | -11 -10 -9 -9 -8 -------- Run | Yrd Mat Mat Sto Mat Hostile Shots Fired 362 | . 138 64 39 121 Missed 102 | . 33 15 15 39 Damage Taken 3973 | . 1121 722 356 1774 Core 1086 | . 237 250 45 554 Absorbed by Shields . | . . . . . Redirected to Shielding 87 | . . . 14 73 Regen/Repaired (Parts) 24 | . . . 24 . Core Remaining (%) 43 | 100 5 . 26 . Volleys Fired 119 | . 46 5 32 36 Largest 2 | . 2 1 2 2 Hottest 112 | . 60 33 112 56 Shots Fired 178 | . 86 5 46 41 Gun 163 | . 86 . 36 41 Cannon . | . . . . . Launcher 9 | . . 5 4 . Special 6 | . . . 6 . Kinetic 87 | . 57 . . 30 Thermal 53 | . . . 42 11 Explosive . | . . . . . Electromagnetic 38 | . 29 5 4 . Robot Hit Streak 18 | . 8 7 9 18 Robot Miss Streak 2 | . 2 1 2 2 Penetration Max . | . . . . . Secondary Targets 3 | . 2 . . 1 Max Gunslinging Chain 1 | . 1 . . 1 Shots Hit Robots 108 | . 53 4 21 30 Core Hits 53 | . 30 3 8 12 Critical Kills . | . . . . . Critical Parts Destroyed . | . . . . . Critical Strikes 3 | . . . 2 1 Burn 3 | . . . 2 1 Melee Attacks . | . . . . . Impact . | . . . . . Slashing . | . . . . . Piercing . | . . . . . Sneak Attacks . | . . . . . Combat Hostiles . | . . . . . Follow-up Attacks . | . . . . . Damage Inflicted 1721 | . 728 106 406 481 Guns 1463 | . 720 . 262 481 Cannons . | . . . . . Explosions 164 | . . 95 69 . Melee . | . . . . . Ramming 22 | . 8 11 3 . Kinetic 848 | . 510 . . 338 Thermal 477 | . . . 334 143 Explosive . | . . . . . Electromagnetic 374 | . 210 95 69 . Impact . | . . . . . Slashing . | . . . . . Piercing . | . . . . . Highest Corruption 6 | . . . . 6 Average Corruption 6 | . . . . 6 Corruption Purged . | . . . . . Corruption Blocked . | . . . . . Overload Shots . | . . . . . Overflow Damage . | . . . . . Projectiles . | . . . . . Explosions . | . . . . . Melee . | . . . . . Knockbacks 1 | . . 1 . . Impact 1 | . . 1 . . Kinetic . | . . . . . Secondary . | . . . . . Self-Inflicted Damage 55 | . . 55 . . Shots 5 | . . 5 . . Rammed 1 | . . 1 . . Targets Rammed 12 | . 6 5 1 . Kicked 11 | . 6 4 1 . Crushed . | . . . . . Highest Temperature 195 | . 72 4 195 30 Average Temperature 33 | . 20 4 53 10 Received Heat Transfer 1359 | . 411 219 135 594 Siege Activations . | . . . . . Robots Corrupted . | . . . . . Combat Hostiles . | . . . . . Parts Fried 1 | . . 1 . . Impact Corruptions . | . . . . . Robots Melted . | . . . . . Combat Hostiles . | . . . . . Parts Melted 4 | . . . 3 1 Heat Transferred 1408 | . . . 964 444 Parts Sabotaged . | . . . . . Parts Stolen . | . . . . . Parts Stripped . | . . . . . Power Chain Reactions . | . . . . . Alert | -11 -10 -9 -9 -8 ------- Run | Yrd Mat Mat Sto Mat Peak Influence 219 | . 152 58 219 112 Initial 75 | . . 24 8 75 Average 77 | . 62 27 105 63 Maximum Alert Level 1 | . . . 1 . Low Security (%) 96 | 100 100 100 91 100 Level 1 3 | . . . 8 . Level 2 . | . . . . . Level 3 . | . . . . . Level 4 . | . . . . . Level 5 . | . . . . . High Security . | . . . . . Max Security . | . . . . . Squads Dispatched 14 | . 5 2 3 4 Investigation 3 | . 2 . 1 . Extermination . | . . . . . Reinforcement 9 | . 3 2 2 2 Assault . | . . . . . Garrison 2 | . . . . 2 Intercept . | . . . . . Searches Triggered . | . . . . . Construction Impeded . | . . . . . Haulers Reinforced . | . . . . . Active Scanning Responses . | . . . . . Cargo Convoy Interrupts . | . . . . . Stealth | -11 -10 -9 -9 -8 --------- Run | Yrd Mat Mat Sto Mat Distress Signals 4 | . 2 . . 2 Communications Jammed . | . . . . . Distress Signals . | . . . . . Times Spotted 50 | . 22 4 12 12 Peak Tracking Total 7 | . 4 3 4 7 Tactical Retreats 3 | . . 1 1 1 Traps | -11 -10 -9 -9 -8 ------- Run | Yrd Mat Mat Sto Mat Traps Triggered 4 | . 3 . 1 . Indirectly . | . . . . . Trap Hack Attempts . | . . . . . Triggered . | . . . . . Disarmed . | . . . . . Reprogrammed . | . . . . . Reused . | . . . . . Traps Extracted . | . . . . . Installed . | . . . . . Triggered . | . . . . . Machines | -11 -10 -9 -9 -8 ---------- Run | Yrd Mat Mat Sto Mat Machines Disabled 2 | . . 1 1 . Max in Single Turn 1 | . . 1 1 . Machines Repaired . | . . . . . Machines Dismantled . | . . . . . Machines Sabotaged . | . . . . . Overloaded Fab Kills . | . . . . . Hacking | -11 -10 -9 -9 -8 --------- Run | Yrd Mat Mat Sto Mat Machines Accessed 15 | . 4 1 8 2 Terminals 13 | . 3 1 7 2 Fabricators . | . . . . . Repair Stations 1 | . . . 1 . Recycling Units 1 | . 1 . . . Scanalyzers . | . . . . . Garrison Access . | . . . . . Total Hacks 40 | . 14 2 20 4 Successful 23 | . 9 2 8 4 Failed 17 | . 5 . 12 . Catastrophic 1 | . . . 1 . Database Lockouts . | . . . . . Manual 2 | . . . 1 1 Terminals 28 | . 7 2 15 4 Fabricators . | . . . . . Repair Stations 5 | . . . 5 . Recycling Units 7 | . 7 . . . Scanalyzers . | . . . . . Garrison Access . | . . . . . Terminal Hacks 15 | . 4 2 5 4 Record 3 | . . 1 1 1 Robot Analysis 2 | . 2 . . . Open Door 1 | . . . 1 . Branch Access Points 2 | . 1 . 1 . Unreport Threat 3 | . . . 2 1 Locate Traps 1 | . . 1 . . Recall Investigation 1 | . . . . 1 Zone Layout 2 | . 1 . . 1 Fabricator Hacks . | . . . . . Repair Station Hacks 3 | . . . 3 . Scan Component 2 | . . . 2 . Repair 1 | . . . 1 . Recycling Unit Hacks 5 | . 5 . . . Recycle Component 3 | . 3 . . . Process 1 | . 1 . . . Report Inventory 1 | . 1 . . . Scanalyzer . | . . . . . Garrison Access Hacks . | . . . . . Unauthorized Hacks . | . . . . . Terminals . | . . . . . Fabricators . | . . . . . Repair Stations . | . . . . . Recycling Units . | . . . . . Scanalyzers . | . . . . . Garrison Access . | . . . . . Data Cores Recovered . | . . . . . Used . | . . . . . Hacking Detections 10 | . 3 . 7 . Full Trace Events 4 | . 1 . 3 . Feedback Events . | . . . . . Feedback Blocked . | . . . . . Robot Schematics Acquired . | . . . . . Robots Built . | . . . . . Authchips . | . . . . . Time . | . . . . . Total Robot Build Rating . | . . . . . Part Schematics Acquired . | . . . . . Parts Built . | . . . . . Authchips . | . . . . . Time . | . . . . . Total Part Build Rating . | . . . . . Parts Repaired 1 | . . . 1 . Time 26 | . . . 26 . Parts Recycled 3 | . 3 . . . Recycled Matter 146 | . 146 . . . Retrieved Matter . | . . . . . Retrieved Components . | . . . . . Parts Scanalyzed . | . . . . . Part Schematics Acquired . | . . . . . Parts Damaged . | . . . . . Bothacking | -11 -10 -9 -9 -8 ------------ Run | Yrd Mat Mat Sto Mat Used RIF Installer . | . . . . . Robots Hacked . | . . . . . Non-combat . | . . . . . Combat . | . . . . . Robot Hacks Applied . | . . . . . Relay Couplers Released . | . . . . . Fabnet Peak Effective % . | . . . . . Robots Rewired . | . . . . . Allies Hacked . | . . . . . Hacks Repelled . | . . . . . Allies | -11 -10 -9 -9 -8 -------- Run | Yrd Mat Mat Sto Mat Total Allies 10 | . . . 10 . Largest Group 10 | . . . 10 9 Highest-Rated Group 88 | . . . 88 80 Highest-Rated Ally 16 | . . . 16 16 Total Orders 7 | . . . 5 2 FOLLOW 1 | . . . 1 . EXPLORE 6 | . . . 4 2 Ally Attacks 119 | . . . 61 58 Total Damage 1006 | . . . 507 499 Kills 13 | . . . 11 2 Allies Corrupted 1 | . . . 1 . Allies Melted . | . . . . . Intel | -11 -10 -9 -9 -8 ------- Run | Yrd Mat Mat Sto Mat Robot Analysis Total 2 | . 2 . . . Derelict Logs Recovered . | . . . . . Drone Launches 8 | . . . 6 2 Drone Recoveries 4 | . . . 2 2 Exploration | -11 -10 -9 -9 -8 ------------- Run | Yrd Mat Mat Sto Mat Turns Passed 4126 | 121 1112 473 1981 439 Spaces Moved 1792 | 71 487 198 888 148 Core 17 | 7 . 9 . 1 Treads 159 | 64 95 . . . Legs 1613 | . 392 189 888 144 Wheels . | . . . . . Hover 3 | . . . . 3 Flight . | . . . . . Fastest Speed 50 | 50 160 190 190 60 Average Speed 192 | 151 184 206 190 230 Slowest Speed 550 | 160 190 450 190 550 Overloaded Moves . | . . . . . Propulsion Burnouts . | . . . . . Robots Hopped . | . . . . . Cave-ins Triggered 1 | . . . . 1 Exploration Rate (%) 39 | 4 73 19 86 14 Regions Visited 4 Branch Regions 1 Pre-discovered Areas . | . . . . . Known Exits Taken 1 | . . 1 . . Unknown Exits Taken 3 | 1 1 . 1 . Scrap Searched . | . . . . . Spaces Dug 2 | . . . 2 . Terrain Destroyed 3 | . . . 3 . Melee . | . . . . . Projectile 3 | . . . 3 . AOE . | . . . . . Terrain Rammed . | . . . . . Walls Destroyed . | . . . . . Machines Disabled . | . . . . . Actions | -11 -10 -9 -9 -8 --------- Run | Yrd Mat Mat Sto Mat Total 2271 | 82 611 248 1124 206 Wait 206 | . 22 24 160 . Move 1788 | 70 486 197 887 148 Hop . | . . . . . Pick Up 35 | 7 14 5 8 1 Fast Attach 25 | 5 8 2 8 2 Attach 31 | . 7 10 1 13 Detach 8 | . 3 . 3 2 Swap 14 | . 10 . 2 2 Drop 17 | . 9 . 6 2 Fire 119 | . 46 5 32 36 Melee . | . . . . . Ram 1 | . . 1 . . Kick 11 | . 6 4 1 . Crush . | . . . . . Escape Stasis 5 | . . . 5 . Rewire 9 | . . . 9 . Trap . | . . . . . Miscellaneous 2 | . . . 2 . Route ------- -11/Scrapyard -10/Materials (discovered 3 exits: *Mat x2 / *Min) -9/Materials -9/Storage (discovered 2 exits: *Mat / Rec) -8/Materials History --------- Turn | Location | Event 16 | -11/Scrapyard | Discovered new exit (range 15) 122 | -11/Scrapyard | Entered Materials 312 | -10/Materials | Build established: Mutant 362 | -10/Materials | Identified exit to Mines 727 | -10/Materials | Discovered new exit (range 8) 1127 | -10/Materials | Core integrity fell below 50% 1200 | -10/Materials | Core integrity fell below 20% 1214 | -10/Materials | Discovered new exit (range 11) 1234 | -10/Materials | Entered another Materials area 1234 | -9/Materials | Evolved 2 slots: Utility x2 1573 | -9/Materials | Lost 3 parts (1p1n1u) 1634 | -9/Materials | Core integrity fell below 50% 1678 | -9/Materials | Lost 3 parts (1p2n) 1681 | -9/Materials | Discovered new exit (range 8) 1706 | -9/Materials | Identified exit to Storage 1707 | -9/Materials | Entered Storage 1954 | -9/Storage | Build established: Scavenger-Mutant 2177 | -9/Storage | Assisted by bots powering up and referring to "LRC-V3" 2177 | -9/Storage | Identified exit to Recycling 2293 | -9/Storage | Repaired Lgt. Ion Engine 2452 | -9/Storage | Build established: Commander-Mutant 3641 | -9/Storage | Discovered new exit (range 15) 3688 | -9/Storage | Entered Materials 3688 | -8/Materials | Accompanied by 9 allies 3688 | -8/Materials | Evolved 2 slots: Utility x2 3986 | -8/Materials | Garrison activated, responded to threat 3991 | -8/Materials | Build established: Commander-Assassin 4025 | -8/Materials | Lost 6 allies 4087 | -8/Materials | Core integrity fell below 50% 4106 | -8/Materials | Core integrity fell below 20% 4110 | -8/Materials | Crushed by falling debris 4127 | -8/Materials | Destroyed by G-47 Trooper with Particle Gun Last Messages --------------- Knocked back. M-13 Machinist repairs Lgt. Nuclear Core. Critical hit (Burn: +37). G-47 Trooper destroyed. K-01 Serf collects debris. Aluminum Leg destroyed. The unstable cave ceiling collapses. Crushed by falling debris. Signal Interpreter destroyed. System corrupted by crushing effect (+1). Power Shielding destroyed. System corrupted by crushing effect (+5). Structural Scanner crushed. Heat Sink destroyed. K-01 Serf collects debris. G-47 Trooper destroyed. M-13 Machinist repairs G-47 Trooper. K-01 Serf collects debris. Hvy. Assault Rifle destroyed. Acquired 7 matter. Map ----- +----------------------------------------------------+ | ????????????????????????? ?????????????????????? | | ????????????????????????? ?????????????????????? | | ????????????????????????? #????????????????????? | | ????????????????????????# #????????????????????? | | ????????????????????????# #????????????????????? | | ????????????????????????# ##???????????????????? | | ???????????????????????? ! #???????????????????? | | ????????????????????????? #???????????????????? | | ????????????????????????? % ????????????????????? | | ????????????????????????? ????????????????????? | | ????????????????????????? ?????????????????????? | | ????????????????????????## ##????????????????????? | | ??????????????????????####/######????????????????? | | ??????????????????????#*% % #????????????????? | | ??????????????????????# % #????????????????? | | ???? #??????#######%%% #????????????????? | | ?? ######## # % #????????????????? | | ?? !! # # %% % #????????????????? | | ?? ! + T + ! #????????????????? | | ???? # #% =%* #?###########????? | | ???? ####+### # %|= % #?# * #????? | | ???? ## ## ############?# #????? | | ???? ## """ ## #![%%= #??# ! #????? | | ????####### """ ## #%kH=% #??# #????? | | ????#?????# """ ## +%g[!!! #??# """ """ #????? | | ??????????# ## #m!%@!! #??# """ """ #????? | | ??????????# ## ### ;######??# """ """ #????? | | ????####### ## ########?????# #????? | | ???? + # #################+########## | | ????####### # % | | ??????????# # T % | | ??????????# # | | ??????????# # ###+#############+######+### | | ??????????############# #???# # | | ??????????????????????# """ #???# # ! | | ??????????????????????# """ #???# # | | ??????????????????????# """ #???# """ # | | ??????????????????????# #???# " " """ # | | ??????????????????????# #???# "R" """ # !! | | ??????????????????????########???# """ ####### | | ?????????????????????????????????# #?????? | | ?????????????????????????????????###########?????? | | ?????????????????????????????????????????????????? | | ?????????????????????????????????????????????????? | | ?????????????????????????????????????????????????? | | ?????????????????????????????????????????????????? | | | | | | | | | +----------------------------------------------------+ Best States ------------- Heat Dissipation 41 Energy Generation 14 Energy Capacity 275 Matter Stores 300 Matter Capacity 300 Sight Range 18 Robot Scan Range 14 Terrain Scan Density 10 ECM Strength 1 Core Shielding 20 Power Shielding 33 Evasion (%) 45 Recoil Reduction 2 Item Schematics ----------------- None Robot Schematics ------------------ None Fabricated ------------ Nothing Alien Tech Used ----------------- None Achievements -------------- None Challenges ------------ None Game ------ Seed SubatomicTripodLegs Manual? 0 Play Time 00:52:29 Cumulative 27.2 hours Start 2024.05.19 @ 04:21:44 End 2024.05.19 @ 05:13:51 Sessions 1 Manual Loads 0 Difficulty Rogue Special Mode None Game No. 26 Rogue 26 Adventurer 0 Explorer 0 Win Type - Total 0 Types 0/0/0/0/0/0/0/0/0 Lore% 16 Gallery% 18 Achievement% 16 Wizard Run 0 Options --------- Layout 0 ASCII 0 Keyboard 1 Movement Arrows Keybinds 0 Fullscreen 2 Font 20/SmallcapsGlow Map View 66x50 Zoom Use 0% Tactical HUD 0 Map Filters NONE Filters NONE Steam 1 RUN: 5520dd78-3c09-4e95-99d0-8dc5b6e003d2